fUSD/lending_fUSD_20250929
["ID","MTS","AMOUNT","RATE_DAILY","PERIOD"]
[388418171,1759162263274,-501.022181,0.00023476,2]
[388418172,1759162263285,-151.0,0.00023476,7]
[388418173,1759162263295,-151.0,0.00023476,7]
[388418175,1759162263304,-318.567197,0.00023476,7]
[388418176,1759162263314,-318.567197,0.00023476,7]
[388418177,1759162263324,-318.567197,0.00023476,7]
[388418178,1759162263333,-151.0,0.00023476,7]
[388418179,1759162263343,-318.567197,0.00023476,7]
[388418180,1759162263353,-151.0,0.00023476,7]
[388418181,1759162263363,-151.0,0.00023476,7]
[388418182,1759162263373,-194.970321,0.00023476,7]
[388418183,1759162263384,-977.131095,0.00023476,7]
[388418184,1759162263393,-977.131095,0.00023476,7]
[388418185,1759162263402,-977.131095,0.00023476,7]
[388418186,1759162263412,-977.131095,0.00023476,7]
[388418187,1759162263421,-151.0,0.00023476,7]
[388418189,1759162263431,-404.402045,0.00023476,7]
[388418190,1759162263440,-404.402045,0.00023476,7]
[388418191,1759162263449,-404.402045,0.00023476,7]
[388418192,1759162263459,-500.0,0.0002348,7]
[388418193,1759162263468,-500.0,0.00023486,7]
[388418194,1759162263477,-500.0,0.00023491,7]
[388418195,1759162263487,-500.0,0.00023496,7]
[388418196,1759162263497,-200.0,0.000235,2]
[388418197,1759162263506,-3856.74786968,0.000235,5]
[388418198,1759162263515,-953.69820877,0.000235,2]
[388418199,1759162263526,-1801.82256751,0.000235,2]
[388418200,1759162263536,-566.0,0.000235,2]
[388418201,1759162263546,-500.0,0.00023502,7]
[388418202,1759162263555,-500.0,0.00023507,7]
[388418204,1759162263565,-258.015425,0.00023507,7]
[388418205,1759162263575,-258.015425,0.00023507,7]
[388418206,1759162263584,-258.015425,0.00023507,7]
[388418207,1759162263594,-258.015425,0.00023507,7]
[388418208,1759162263604,-167.739812,0.00023507,7]
[388418209,1759162263613,-151.0,0.00023507,7]
[388418210,1759162263624,-167.739812,0.00023507,7]
[388418211,1759162263634,-167.739812,0.00023507,7]
[388418212,1759162263645,-167.739812,0.00023507,7]
[388418213,1759162263655,-151.0,0.00023507,7]
[388418214,1759162263666,-479.535177,0.00023507,7]
[388418215,1759162263676,-151.0,0.00023507,7]
[388418217,1759162263686,-151.0,0.00023507,7]
[388418218,1759162263696,-479.535177,0.00023507,7]
[388418219,1759162263706,-151.0,0.00023507,7]
[388418220,1759162263716,-479.535177,0.00023507,7]
[388418221,1759162263726,-479.535177,0.00023507,7]
[388418222,1759162263735,-300.0,0.0002351,2]
[388418223,1759162263745,-500.0,0.00023512,7]
[388418224,1759162263755,-500.0,0.00023517,7]
[388418225,1759162263765,-500.0,0.00023523,7]
[388418226,1759162263775,-500.0,0.00023528,7]
[388418227,1759162263785,-500.0,0.00023533,7]
[388418228,1759162263795,-28374.71829233,0.00023538,2]
[388418229,1759162263806,-151.0,0.00023538,7]
[388418231,1759162263815,-278.100551,0.00023538,7]
[388418232,1759162263826,-151.0,0.00023538,7]
[388418233,1759162263836,-151.0,0.00023538,7]
[388418234,1759162263845,-151.0,0.00023538,7]
[388418235,1759162263856,-151.0,0.00023538,7]
[388418236,1759162263865,-228.041262,0.00023538,7]
[388418237,1759162263875,-151.0,0.00023538,2]
[388418238,1759162263887,-151.0,0.00023538,7]
[388418239,1759162263897,-151.0,0.00023538,7]
[388418240,1759162263907,-324.455576,0.00023538,7]
[388418241,1759162263917,-324.455576,0.00023538,7]
[388418242,1759162263927,-324.455576,0.00023538,7]
[388418243,1759162263936,-324.455576,0.00023538,7]
[388418244,1759162263946,-151.0,0.00023538,7]
[388418245,1759162263955,-151.0,0.00023538,7]
[388418246,1759162263965,-155.141159,0.00023538,7]
[388418247,1759162263974,-151.0,0.00023538,7]
[388418248,1759162263983,-151.0,0.00023538,7]
[388418249,1759162263992,-151.0,0.00023538,7]
[388418250,1759162264006,-151.0,0.00023538,7]
[388418251,1759162264016,-264.415768,0.00023538,7]
[388418252,1759162264025,-264.415768,0.00023538,7]
[388418253,1759162264035,-264.415768,0.00023538,7]
[388418254,1759162264044,-264.415768,0.00023538,7]
[388418255,1759162264053,-151.0,0.00023538,7]
[388418256,1759162264063,-151.0,0.00023538,7]
[388418257,1759162264072,-151.0,0.00023538,7]
[388418258,1759162264082,-151.0,0.00023538,7]
[388418259,1759162264092,-151.0,0.00023538,7]
[388418260,1759162264102,-151.0,0.00023538,7]
[388418261,1759162264112,-151.0,0.00023538,7]
[388418262,1759162264124,-255.289991,0.00023538,7]
[388418263,1759162264134,-165.795924,0.00023538,7]
[388418264,1759162264143,-255.289991,0.00023538,7]
[388418265,1759162264153,-165.795924,0.00023538,7]
[388418266,1759162264163,-255.289991,0.00023538,7]
[388418267,1759162264173,-165.795924,0.00023538,7]
[388418268,1759162264183,-151.0,0.00023538,7]
[388418269,1759162264193,-255.289991,0.00023538,7]
[388418271,1759162264203,-165.795924,0.00023538,7]
[388418272,1759162264214,-151.0,0.00023538,7]
[388418273,1759162264224,-184.385177,0.00023538,7]
[388418274,1759162264235,-184.385177,0.00023538,7]
[388418275,1759162264244,-184.385177,0.00023538,7]
[388418276,1759162264253,-184.385177,0.00023538,7]
[388418277,1759162264263,-151.0,0.00023538,7]
[388418278,1759162264272,-151.0,0.00023538,7]
[388418279,1759162264282,-151.0,0.00023538,7]
[388418280,1759162264292,-151.0,0.00023538,7]
[388418281,1759162264301,-2637.117872,0.00023538,7]
[388418282,1759162264311,-224.291622,0.00023538,7]
[388418284,1759162264321,-2637.117872,0.00023538,7]
[388418285,1759162264331,-224.291622,0.00023538,7]
[388418286,1759162264341,-2637.117872,0.00023538,7]
[388418287,1759162264351,-151.0,0.00023538,7]
[388418288,1759162264361,-2637.117872,0.00023538,7]
[388418289,1759162264371,-224.291622,0.00023538,7]
[388418290,1759162264384,-224.291622,0.00023538,7]
[388418291,1759162264394,-151.0,0.00023538,7]
[388418292,1759162264403,-151.0,0.00023538,7]
[388418293,1759162264413,-151.0,0.00023538,7]
[388418294,1759162264426,-151.0,0.00023538,7]
[388418296,1759162264435,-157.671799,0.00023538,7]
[388418297,1759162264444,-157.671799,0.00023538,7]
[388418298,1759162264454,-157.671799,0.00023538,7]
[388418299,1759162264464,-157.671799,0.00023538,7]
[388418300,1759162264474,-151.0,0.00023538,7]
[388418301,1759162264484,-151.0,0.00023538,7]
[388418302,1759162264493,-165459.98398533,0.00023538,2]
[388418307,1759162265948,-1393.32967665,0.00023538,2]
[388418308,1759162265961,-14495.71776345,0.00023538,2]
[388418309,1759162265973,-4039.6747747,0.00023538,2]
[388418310,1759162266180,-767.12571183,0.00018638,2]
[388418311,1759162266841,-412.87428817,0.00018638,2]
[388418312,1759162266851,-89.09571184,0.000199,2]
[388418313,1759162266871,-315.30633316,0.000199,2]
[388418314,1759162266881,-151.0,0.000199,2]
[388418315,1759162266891,-3325.00547329,0.00023538,2]
[388418316,1759162266904,-1388.67040378,0.00023538,2]
[388418317,1759162266917,-1417.5,0.00023538,2]
[388418318,1759162266928,-1202.799999,0.00023538,2]
[388418319,1759162266940,-4165.11463823,0.00023538,2]
[388418320,1759162266952,-601.50114901,0.00023538,2]
[388418321,1759162267151,-151.0,0.00019177,2]
[388418322,1759162267161,-313.76347741,0.00019177,2]
[388418323,1759162267173,-587.26757068,0.00019177,2]
[388418324,1759162267185,-247.49816991,0.00019177,2]
[388418325,1759162267195,-151.0,0.000199,2]
[388418326,1759162267205,-1148.529218,0.000199,2]
[388418327,1759162267215,-1180.0,0.00021638,2]
[388418328,1759162267225,-404.402045,0.00022,7]
[388418329,1759162267235,-151.0,0.00022,7]
[388418330,1759162267246,-404.402045,0.00023476,7]
[388418331,1759162267255,-151.0,0.00023476,7]
[388418332,1759162267266,-748.75619592,0.00023538,2]
[388418333,1759162267278,-142343.60621758,0.00023538,2]
[388418334,1759162267288,-500.0,0.00023539,7]
[388418335,1759162267298,-160.78275,0.00023539,2]
[388418336,1759162267307,-351.92318229,0.00023539,2]
[388418337,1759162267317,-173.52271755,0.00023561,25]
[388418338,1759162267327,-201.93286099,0.00023562,2]
[388418339,1759162267337,-150.0,0.00023573,2]
[388418340,1759162267346,-1090.0,0.00023608,2]
[388418341,1759162267356,-713.0,0.0002367,2]
[388418342,1759162267365,-500.0,0.0002367,2]
[388418343,1759162267375,-478.0,0.0002367,2]
[388418344,1759162267388,-500.0,0.0002367,2]
[388418345,1759162267398,-2307.0,0.0002367,2]
[388418346,1759162267408,-500.0,0.0002367,2]
[388418347,1759162267419,-2195.0,0.0002367,2]
[388418348,1759162267431,-500.0,0.0002367,2]
[388418349,1759162267440,-600.37401073,0.0002367,2]
[388418350,1759162267450,-588.0,0.0002367,2]
[388418351,1759162267460,-250.0,0.0002367,2]
[388418352,1759162267470,-953.69820877,0.000237,2]
[388418353,1759162267481,-1801.82256751,0.000237,2]
[388418354,1759162267491,-200.0,0.0002371,7]
[388418355,1759162267503,-3000.0,0.00023712,2]
[388418356,1759162267513,-3000.0,0.00023712,2]
[388418357,1759162267523,-500.0,0.00023712,2]
[388418358,1759162267532,-3000.0,0.00023712,2]
[388418359,1759162267543,-3000.0,0.00023712,2]
[388418360,1759162268069,-1315.2714427,0.00023712,2]
[388418361,1759162268082,-1482.48168327,0.00023712,2]
[388418362,1759162268093,-189.02840405,0.00023712,2]
[388418363,1759162268104,-2406.72702718,0.00023712,2]
[388418364,1759162268115,-600.0,0.00023754,2]
[388418365,1759162268125,-8890.22648657,0.0002376,2]
[388418366,1759162268135,-710.43484277,0.00023765,6]
[388418367,1759162268144,-164.34,0.00023785,2]
[388418368,1759162268155,-38896.72,0.000238,2]
[388418369,1759162268165,-200.0,0.0002381,7]
[388418370,1759162268175,-2212.51,0.00023836,2]
[388418371,1759162268186,-151.0,0.00023836,2]
[388418372,1759162268196,-953.69820877,0.000239,2]
[388418373,1759162268206,-1801.82256751,0.000239,2]
[388418374,1759162268217,-500.0,0.000239,8]
[388418375,1759162268227,-200.0,0.0002391,2]
[388418376,1759162268237,-28374.71829233,0.00023919,2]
[388418377,1759162268247,-713.0,0.00023944,2]
[388418378,1759162268257,-500.0,0.00023944,2]
[388418379,1759162268267,-478.0,0.00023944,2]
[388418380,1759162268276,-331.20842556,0.00023944,2]
[388418381,1759162268287,-2307.0,0.00023944,2]
[388418382,1759162268297,-500.0,0.00023944,2]
[388418383,1759162268307,-2195.0,0.00023944,2]
[388418384,1759162268317,-500.0,0.00023944,2]
[388418385,1759162268327,-588.0,0.00023944,2]
[388418386,1759162268338,-4000.0,0.00024,4]
[388418387,1759162268349,-2000.0,0.00024,2]
[388418388,1759162268359,-2016.82062472,0.00024,2]
[388418389,1759162268369,-1000.0,0.00024,9]
[388418390,1759162268381,-1000.0,0.00024,9]
[388418391,1759162268393,-1000.0,0.00024,9]
[388418392,1759162268404,-60956.30147724,0.00024,2]
[388418393,1759162268414,-1004.58953,0.00024,2]
[388418394,1759162268426,-768.64075577,0.00024,2]
[388418395,1759162268437,-363.24719278,0.00024,2]
[388418396,1759162268449,-24869.2462858,0.00024,7]
[388418397,1759162268461,-160.0,0.00024,3]
[388418398,1759162268471,-4636.58,0.00024,7]
[388418399,1759162268482,-71346.65635558,0.00024,7]
[388418400,1759162268496,-302.07127842,0.00024,7]
[388418401,1759162268509,-350.74587404,0.00024,7]
[388418402,1759162268552,-1148.529218,0.00022,7]
[388418403,1759162268563,-129388.25649196,0.00024,7]
[388418404,1759162268574,-3600.0,0.00024,4]
[388418405,1759162268585,-151.0,0.00024,7]
[388418406,1759162268596,-151.0,0.00024,7]
[388418407,1759162268607,-183.415345,0.00024,7]
[388418408,1759162268619,-151.0,0.00024,7]
[388418409,1759162268630,-183.415345,0.00024,7]
[388418410,1759162268640,-183.415345,0.00024,7]
[388418411,1759162268649,-183.415351,0.00024,7]
[388418412,1759162268659,-155.474325,0.00024,7]
[388418413,1759162268669,-1664.126647,0.00024,7]
[388418414,1759162268679,-155.474325,0.00024,7]
[388418415,1759162268690,-1664.126647,0.00024,7]
[388418416,1759162268701,-155.474325,0.00024,7]
[388418417,1759162268712,-1664.126647,0.00024,7]
[388418418,1759162268723,-155.47432,0.00024,7]
[388418419,1759162268734,-1664.126653,0.00024,7]
[388418420,1759162268744,-151.0,0.00024,7]
[388418421,1759162268756,-151.0,0.00024,7]
[388418422,1759162268767,-151.0,0.00024,7]
[388418423,1759162268779,-7154.158261,0.00024,7]
[388418424,1759162268792,-151.0,0.00024,7]
[388418425,1759162268804,-7154.158261,0.00024,7]
[388418426,1759162268816,-151.0,0.00024,7]
[388418427,1759162268828,-7154.158261,0.00024,7]
[388418428,1759162268839,-7154.15826,0.00024,7]
[388418429,1759162268849,-163.0,0.00024,7]
[388418430,1759162268860,-1004.32604043,0.00024,2]
[388418431,1759162268871,-151.0,0.00024,7]
[388418433,1759162268881,-501.022181,0.00024,2]
[388418434,1759162268892,-501.022181,0.00024,2]
[388418435,1759162268903,-501.022181,0.00024,2]
[388418436,1759162268914,-501.022184,0.00024,2]
[388418437,1759162268924,-151.0,0.00024,7]
[388418438,1759162268935,-151.0,0.00024,7]
[388418439,1759162268946,-318.567197,0.00024,7]
[388418440,1759162268956,-318.567197,0.00024,7]
[388418441,1759162268967,-318.567197,0.00024,7]
[388418442,1759162268977,-151.0,0.00024,7]
[388418443,1759162268988,-318.567201,0.00024,7]
[388418444,1759162268998,-151.0,0.00024,7]
[388418446,1759162269008,-151.0,0.00024,7]
[388418447,1759162269018,-977.131095,0.00024,7]
[388418448,1759162269029,-977.131095,0.00024,7]
[388418449,1759162269039,-977.131095,0.00024,7]
[388418450,1759162269049,-977.131096,0.00024,7]
[388418451,1759162269060,-151.0,0.00024,7]
[388418452,1759162269069,-404.402045,0.00024,7]
[388418453,1759162269080,-404.402045,0.00024,7]
[388418454,1759162269090,-2585.0,0.00024,2]
[388418455,1759162269100,-404.402045,0.00024,7]
[388418456,1759162269110,-404.402036,0.00024,7]
[388418458,1759162269121,-151.0,0.00024,7]
[388418459,1759162269131,-1196.09,0.00024052,2]
[388418460,1759162269141,-1196.09,0.00024052,2]
[388418461,1759162269151,-1196.09,0.00024052,2]
[388418462,1759162269162,-700.0,0.00024082,2]
[388418463,1759162269173,-200.57,0.000241,7]
[388418464,1759162269183,-5304.22430022,0.000241,2]
[388418465,1759162269193,-10177.33661042,0.000241,2]
[388418466,1759162269204,-258.015425,0.000241,7]
[388418467,1759162269214,-258.015425,0.000241,7]
[388418468,1759162269224,-258.015425,0.000241,7]
[388418470,1759162269235,-258.015421,0.000241,7]
[388418472,1759162269245,-167.739812,0.000241,7]
[388418473,1759162269255,-151.0,0.000241,7]
[388418474,1759162269265,-167.739812,0.000241,7]
[388418475,1759162269275,-167.739812,0.000241,7]
[388418476,1759162269285,-167.739814,0.000241,7]
[388418477,1759162269296,-151.0,0.000241,7]
[388418478,1759162269306,-479.535177,0.000241,7]
[388418479,1759162269317,-151.0,0.000241,7]
[388418480,1759162269327,-479.535177,0.000241,7]
[388418481,1759162269337,-151.0,0.000241,7]
[388418482,1759162269347,-479.535177,0.000241,7]
[388418483,1759162269356,-479.535181,0.000241,7]
[388418484,1759162269367,-2387.52,0.00024105,2]
[388418485,1759162269377,-209.40437684,0.0002411,2]
[388418486,1759162269391,-250.0,0.00024121,2]
[388418487,1759162269402,-1000.0,0.00024134,2]
[388418488,1759162269412,-200.0,0.0002421,7]
[388418489,1759162269423,-415.29478983,0.0002421,2]
[388418491,1759162269434,-3638.50185897,0.0002421,2]
[388418492,1759162269443,-151.0,0.0002421,7]
[388418494,1759162269453,-255.289991,0.0002421,7]
[388418495,1759162269465,-165.795924,0.0002421,7]
[388418496,1759162269476,-255.289991,0.0002421,7]
[388418497,1759162269486,-165.795924,0.0002421,7]
[388418498,1759162269496,-255.289991,0.0002421,7]
[388418499,1759162269506,-165.795924,0.0002421,7]
[388418500,1759162269516,-255.28999025,0.0002421,7]
[388418501,1759162269526,-165.795918,0.0002421,7]
[388418502,1759162269537,-151.0,0.0002421,7]
[388418503,1759162269546,-184.385177,0.0002421,7]
[388418504,1759162269556,-184.385177,0.0002421,7]
[388418505,1759162269565,-184.385177,0.0002421,7]
[388418506,1759162269575,-184.38518014,0.0002421,7]
[388418507,1759162269585,-151.0,0.0002421,7]
[388418508,1759162269595,-151.0,0.0002421,7]
[388418509,1759162269604,-151.0,0.0002421,7]
[388418510,1759162269614,-2637.117872,0.0002421,7]
[388418511,1759162269624,-224.291622,0.0002421,7]
[388418512,1759162269635,-2637.117872,0.0002421,7]
[388418513,1759162269645,-224.291622,0.0002421,7]
[388418514,1759162269655,-2637.117872,0.0002421,7]
[388418515,1759162269665,-224.291622,0.0002421,7]
[388418516,1759162269675,-2637.117871,0.0002421,7]
[388418518,1759162269684,-224.29163,0.0002421,7]
[388418519,1759162269695,-151.0,0.0002421,7]
[388418520,1759162269705,-151.0,0.0002421,7]
[388418521,1759162269714,-151.0,0.0002421,7]
[388418522,1759162269724,-157.671799,0.0002421,7]
[388418523,1759162269734,-157.671799,0.0002421,7]
[388418524,1759162269744,-157.671799,0.0002421,7]
[388418525,1759162269754,-157.671806,0.0002421,7]
[388418526,1759162269764,-151.0,0.0002421,7]
[388418527,1759162269774,-151.0,0.0002421,7]
[388418528,1759162269784,-2789.0,0.00024212,11]
[388418529,1759162269795,-713.0,0.00024218,2]
[388418530,1759162269804,-478.0,0.00024218,2]
[388418531,1759162269815,-2307.0,0.00024218,2]
[388418532,1759162269825,-500.0,0.00024218,2]
[388418533,1759162269835,-2195.0,0.00024218,2]
[388418534,1759162269845,-500.0,0.00024218,2]
[388418535,1759162269855,-588.0,0.00024218,2]
[388418536,1759162269865,-152.978147,0.00024218,7]
[388418537,1759162269875,-151.0,0.00024218,7]
[388418538,1759162269885,-151.0,0.00024218,7]
[388418539,1759162269894,-473.29,0.00024255,2]
[388418540,1759162269904,-151.0,0.0002426,7]
[388418541,1759162269914,-151.0,0.0002426,7]
[388418542,1759162269924,-151.0,0.0002426,7]
[388418543,1759162269934,-151.0,0.0002426,7]
[388418544,1759162269945,-151.0,0.0002426,7]
[388418545,1759162269955,-151.0,0.0002426,2]
[388418546,1759162269965,-165.134412,0.0002426,7]
[388418547,1759162269975,-151.0,0.0002426,7]
[388418548,1759162269985,-324.455576,0.0002426,7]
[388418549,1759162269995,-324.455576,0.0002426,7]
[388418550,1759162270005,-324.455576,0.0002426,7]
[388418551,1759162270015,-324.455576,0.0002426,7]
[388418552,1759162270026,-151.0,0.0002426,7]
[388418553,1759162270035,-2922.77511515,0.0002426,2]
[388418554,1759162270045,-3559.83456494,0.0002426,2]
[388418555,1759162270055,-3500.0,0.0002426,2]
[388418556,1759162270065,-3500.0,0.0002426,2]
[388418557,1759162270074,-28374.71829233,0.00024301,2]
[388418558,1759162270085,-215.598724,0.00024301,7]
[388418559,1759162270095,-630.369679,0.00024301,7]
[388418560,1759162270107,-151.0,0.00024301,7]
[388418561,1759162270117,-151.0,0.00024301,7]
[388418562,1759162270129,-151.0,0.00024301,7]
[388418563,1759162270139,-264.415768,0.00024301,7]
[388418564,1759162270149,-264.415768,0.00024301,7]
[388418565,1759162270160,-264.415768,0.00024301,7]
[388418566,1759162270169,-264.415769,0.00024301,7]
[388418567,1759162270180,-151.0,0.00024301,7]
[388418568,1759162270190,-151.0,0.00024301,7]
[388418569,1759162270200,-600.0,0.00024302,2]
[388418570,1759162270210,-200.0,0.0002431,7]
[388418571,1759162270221,-4000.0,0.00024316,5]
[388418572,1759162270232,-12944.0,0.00024342,2]
[388418573,1759162270241,-10000.0,0.00024359,10]
[388418574,1759162270251,-277.35679052,0.00024376,2]
[388418575,1759162270261,-160.0,0.00024376,2]
[388418577,1759162270271,-373.07297731,0.00024376,2]
[388418578,1759162270280,-670.58624095,0.00024378,2]
[388418579,1759162270291,-644.79446246,0.00024378,2]
[388418580,1759162270301,-152.0,0.00024384,2]
[388418581,1759162270311,-151.0,0.00024403,2]
[388418582,1759162270320,-151.0,0.00024403,2]
[388418583,1759162270330,-152.0,0.00024403,2]
[388418584,1759162270341,-151.0,0.00024403,2]
[388418585,1759162270350,-152.0,0.00024403,2]
[388418586,1759162270359,-151.72334131,0.00024403,2]
[388418587,1759162270369,-152.0,0.00024403,2]
[388418588,1759162270381,-152.0,0.00024403,2]
[388418589,1759162270393,-152.0,0.00024403,2]
[388418590,1759162270403,-152.0,0.00024403,2]
[388418591,1759162270413,-200.0,0.0002441,7]
[388418592,1759162270425,-225.47953282,0.00024439,28]
[388418593,1759162270435,-713.0,0.00024492,2]
[388418594,1759162270445,-478.0,0.00024492,2]
[388418595,1759162270455,-2307.0,0.00024492,2]
[388418596,1759162270466,-500.0,0.00024492,2]
[388418597,1759162270475,-2195.0,0.00024492,2]
[388418598,1759162270485,-500.0,0.00024492,2]
[388418600,1759162270495,-588.0,0.00024492,2]
[388418601,1759162270505,-390.7373419,0.000245,9]
[388418602,1759162270515,-6387.19,0.000245,2]
[388418603,1759162270525,-201.57,0.0002451,7]
[388418604,1759162270537,-2044.0,0.00024569,2]
[388418605,1759162270548,-787.0,0.00024569,2]
[388418606,1759162270559,-603.0,0.00024569,2]
[388418607,1759162270569,-1302.0,0.00024569,2]
[388418608,1759162270579,-1584.0,0.00024569,2]
[388418609,1759162270590,-565.0,0.00024569,2]
[388418610,1759162270607,-759.89128,0.000246,2]
[388418612,1759162270618,-313.12465,0.000246,2]
[388418613,1759162270629,-814.0,0.00024609,2]
[388418614,1759162270640,-200.0,0.0002461,7]
[388418615,1759162270650,-3398.0,0.00024623,2]
[388418616,1759162270661,-639.688,0.00024623,2]
[388418617,1759162270671,-4113.0,0.00024638,2]
[388418618,1759162270681,-894.0,0.00024638,2]
[388418619,1759162270692,-1177.0,0.00024638,2]
[388418620,1759162270702,-588.02986463,0.0002465,2]
[388418621,1759162270714,-164.61241336,0.0002465,2]
[388418622,1759162270724,-157.65767143,0.00024658,2]
[388418623,1759162270734,-154.0,0.00024658,2]
[388418625,1759162270744,-154.0,0.00024658,2]
[388418626,1759162270755,-154.0,0.00024658,2]
[388418627,1759162270766,-154.0,0.00024658,2]
[388418628,1759162270778,-154.0,0.00024658,2]
[388418629,1759162270789,-154.0,0.00024658,2]
[388418630,1759162270799,-1000.0,0.00024658,3]
[388418631,1759162270809,-1000.0,0.00024658,3]
[388418632,1759162270819,-1000.0,0.00024658,3]
[388418633,1759162270829,-1000.0,0.00024658,3]
[388418634,1759162270839,-1000.0,0.00024658,3]
[388418635,1759162270849,-1000.0,0.00024658,3]
[388418636,1759162270859,-1000.0,0.00024658,3]
[388418638,1759162270870,-1000.0,0.00024658,3]
[388418639,1759162270879,-1000.0,0.00024658,3]
[388418640,1759162270889,-1000.0,0.00024658,3]
[388418641,1759162270899,-1000.0,0.00024658,3]
[388418642,1759162270908,-1000.0,0.00024658,3]
[388418643,1759162270918,-1000.0,0.00024658,3]
[388418644,1759162270928,-1000.0,0.00024658,3]
[388418645,1759162270938,-1000.0,0.00024658,3]
[388418646,1759162270948,-1000.0,0.00024658,3]
[388418647,1759162270958,-1000.0,0.00024658,3]
[388418648,1759162270967,-1000.0,0.00024658,3]
[388418649,1759162270977,-1000.0,0.00024658,3]
[388418651,1759162270986,-1000.0,0.00024658,3]
[388418652,1759162270995,-1000.0,0.00024658,3]
[388418653,1759162271004,-1000.0,0.00024658,3]
[388418654,1759162271013,-1000.0,0.00024658,3]
[388418655,1759162271023,-1000.0,0.00024658,3]
[388418656,1759162271031,-1000.0,0.00024658,3]
[388418657,1759162271041,-1000.0,0.00024658,3]
[388418658,1759162271051,-1000.0,0.00024658,3]
[388418659,1759162271061,-1000.0,0.00024658,3]
[388418660,1759162271070,-1000.0,0.00024658,3]
[388418661,1759162271080,-1000.0,0.00024658,3]
[388418662,1759162271090,-1000.0,0.00024658,3]
[388418663,1759162271099,-1000.0,0.00024658,3]
[388418664,1759162271109,-1000.0,0.00024658,3]
[388418666,1759162271118,-1000.0,0.00024658,3]
[388418667,1759162271129,-1000.0,0.00024658,3]
[388418668,1759162271139,-1000.0,0.00024658,3]
[388418669,1759162271150,-1000.0,0.00024658,3]
[388418670,1759162271160,-1000.0,0.00024658,3]
[388418671,1759162271170,-1000.0,0.00024658,3]
[388418672,1759162271180,-1000.0,0.00024658,3]
[388418673,1759162271189,-1000.0,0.00024658,3]
[388418674,1759162271199,-1000.0,0.00024658,3]
[388418675,1759162271210,-1000.0,0.00024658,2]
[388418676,1759162271220,-1000.0,0.00024658,3]
[388418677,1759162271230,-1000.0,0.00024658,3]
[388418678,1759162271241,-1000.0,0.00024658,3]
[388418680,1759162271250,-1000.0,0.00024658,3]
[388418681,1759162271260,-1000.0,0.00024658,3]
[388418682,1759162271270,-1000.0,0.00024658,3]
[388418683,1759162271280,-1000.0,0.00024658,3]
[388418684,1759162271290,-1000.0,0.00024658,3]
[388418685,1759162271299,-1000.0,0.00024658,3]
[388418686,1759162271309,-1000.0,0.00024658,3]
[388418687,1759162271319,-1000.0,0.00024658,3]
[388418688,1759162271329,-1000.0,0.00024658,3]
[388418689,1759162271339,-1000.0,0.00024658,3]
[388418690,1759162271348,-1533.74,0.00024658,2]
[388418691,1759162271358,-151.0,0.00024658,7]
[388418692,1759162271368,-151.0,0.00024658,7]
[388418693,1759162271379,-151.0,0.00024658,7]
[388418695,1759162271393,-151.0,0.00024658,7]
[388418696,1759162271403,-245.0,0.00024658,7]
[388418697,1759162271413,-349.196649,0.00024658,7]
[388418698,1759162271423,-349.196649,0.00024658,7]
[388418699,1759162271435,-349.196649,0.00024658,7]